bitfinex-derivatives/quotes_ETHF0:USTF0_20241023
["timestamp","ask_amount","ask_price","bid_price","bid_amount"]
[1729690025665,0.38816,2577.9,2577.8,41.18817]
[1729690025870,4.86547145,2578.0,2577.9,0.38816]
[1729690026071,3.59594,2578.1,2578.0,0.38814]
[1729690026459,3.2078,2578.1,2578.0,0.38814]
[1729690026966,3.59593,2578.1,2578.0,0.38814]
[1729690027166,3.2078,2578.1,2578.0,0.38814]
[1729690027358,3.2078,2578.5,2578.2,0.3881]
[1729690027557,0.38808,2578.4,2578.3,0.4073]
[1729690027959,4.26648,2578.4,2578.3,0.4073]
[1729690028560,0.38808,2578.4,2578.3,0.4073]
[1729690029771,0.38808,2578.4,2578.3,0.7954]
[1729690030365,0.38808,2578.4,2578.3,0.4073]
[1729690030873,0.38808,2578.4,2578.3,0.79539]
[1729690031165,0.38808,2578.4,2578.3,0.4073]
[1729690031360,4.00012,2578.7,2578.3,0.79539]
[1729690031361,0.38808,2578.5,2578.3,0.79539]
[1729690031568,0.38808,2578.5,2578.4,0.8487]
[1729690033571,0.38808,2578.5,2578.4,1.23678]
[1729690034063,0.38808,2578.5,2578.4,0.8487]
[1729690034474,0.38808,2578.5,2578.4,1.23678]
[1729690034673,4.15780121,2578.6,2578.5,0.38807]
[1729690034976,4.15780121,2578.6,2578.4,1.23677]
[1729690034977,0.38806,2578.6,2578.4,1.23677]
[1729690035170,3.2078,2578.8,2578.4,0.8487]
[1729690035171,0.38807,2578.5,2578.4,0.8487]
[1729690035561,4.19334566,2578.7,2578.4,0.8487]
[1729690035771,0.38802,2578.9,2578.7,0.38803]
[1729690035970,0.388,2579.0,2578.8,0.38801]
[1729690036969,0.4288,2579.3,2578.6,3.03]
[1729690037165,0.388,2579.0,2578.8,0.38802]
[1729690037968,0.38802,2578.8,2578.7,3.2078]
[1729690038177,0.4169,2578.9,2578.4,0.38807]
[1729690038468,0.4169,2578.9,2578.4,0.38808]
[1729690038469,0.38807,2578.6,2578.4,0.38808]
[1729690038673,1.38694,2578.9,2578.4,0.38808]
[1729690038871,0.38802,2578.8,2578.5,1.61297]
[1729690039173,0.38805,2578.6,2578.5,1.2249]
[1729690039769,0.38805,2578.6,2578.5,1.61297]
[1729690039970,0.38805,2578.6,2578.5,1.2249]
[1729690041073,0.38805,2578.6,2578.5,1.61297]
[1729690041875,0.38805,2578.7,2578.6,0.38804]
[1729690043774,3.99996,2579.1,2578.5,4.4327]
[1729690043974,0.38805,2578.7,2578.6,0.38804]
[1729690045178,0.38805,2578.6,2578.5,1.2249]
[1729690045772,0.38805,2578.6,2578.4,0.38807]
[1729690045773,0.3881,2578.3,2578.2,3.2078]
[1729690047280,3.8474,2578.4,2577.9,1.1891]
[1729690047481,0.38814,2578.0,2577.9,1.57725]
[1729690047681,0.38814,2578.1,2578.0,0.38813]
[1729690048087,0.38814,2578.0,2577.9,1.57725]
[1729690048472,0.38814,2578.0,2577.9,1.1891]
[1729690048674,0.38814,2578.0,2577.9,0.7994]
[1729690049680,0.4293,2578.2,2577.9,0.7994]
[1729690049875,0.38814,2578.0,2577.9,0.7994]
[1729690050274,0.38814,2578.0,2577.9,1.18756]
[1729690051280,0.38814,2578.0,2577.9,0.7994]
[1729690051682,0.38814,2578.0,2577.9,1.18756]
[1729690051977,0.38814,2578.0,2577.9,0.7994]
[1729690052184,0.38814,2578.0,2577.9,1.18756]
[1729690053374,0.38814,2578.1,2577.9,1.18756]
[1729690053677,0.4293,2578.3,2577.9,0.7994]
[1729690053879,0.38814,2578.1,2578.0,0.38814]
[1729690054180,0.4293,2578.3,2578.0,0.38814]
[1729690054371,0.4293,2578.3,2578.0,0.3983]
[1729690054581,0.38813,2578.1,2578.0,0.78644]
[1729690054977,0.4293,2578.3,2578.0,0.3983]
[1729690055281,0.38813,2578.1,2578.0,0.3983]
[1729690055676,0.4293,2578.3,2577.9,1.18755]
[1729690055880,0.38814,2578.0,2577.9,1.18755]
[1729690056184,0.38814,2578.1,2577.9,1.18755]
[1729690056887,0.38814,2578.1,2577.9,0.7994]
[1729690057089,0.38814,2578.1,2577.9,1.18755]
[1729690057479,1.35902,2578.4,2578.0,0.38814]
[1729690057680,0.38812,2578.2,2577.9,0.7994]
[1729690057874,0.38812,2578.2,2578.0,0.38813]
[1729690058183,0.3888,2578.4,2577.9,0.7994]
[1729690058184,0.3888,2578.4,2578.1,0.4178]
[1729690058384,0.38811,2578.2,2578.1,0.4178]
[1729690058984,0.38811,2578.2,2578.1,0.80593]
[1729690059185,0.38811,2578.2,2578.1,0.4178]
[1729690061886,0.38811,2578.2,2578.1,0.80593]
[1729690062090,0.38811,2578.2,2578.1,0.4178]
[1729690064286,1.78811,2578.2,2578.1,1.8178]
[1729690065091,1.4,2578.2,2578.1,1.8178]
[1729690065389,1.4,2578.2,2578.1,2.20593]
[1729690065587,1.78811,2578.2,2578.1,2.20593]
[1729690066384,1.78811,2578.2,2578.1,1.8178]
[1729690067193,1.4,2578.2,2578.1,2.20593]
[1729690067689,1.78811,2578.3,2578.2,0.38811]
[1729690067890,1.4,2578.3,2578.2,1.78811]
[1729690068090,1.4,2578.3,2578.2,1.4]
[1729690068091,1.7881,2578.3,2578.2,1.4]
[1729690068391,1.7881,2578.3,2578.2,1.78811]
[1729690069194,1.4,2578.3,2578.2,1.78811]
[1729690069592,1.7881,2578.3,2578.2,1.78811]
[1729690069790,1.4,2578.3,2578.2,1.78811]
[1729690070387,0.38806,2578.6,2578.5,0.38807]
[1729690070600,1.4,2578.7,2578.6,0.38805]
[1729690070795,0.38806,2578.6,2578.4,4.6078]
[1729690071107,1.4,2578.6,2578.5,1.4]
[1729690071413,1.4,2578.7,2578.6,0.38805]
[1729690071695,0.38802,2578.8,2578.7,0.3988]
[1729690072200,1.78802,2578.8,2578.7,0.3988]
[1729690072397,1.78802,2578.8,2578.7,0.78684]
[1729690072897,0.38807,2578.5,2578.4,3.2078]
[1729690073091,1.78807,2578.5,2578.4,3.2078]
[1729690073291,5.66647,2578.5,2578.4,3.2078]
[1729690073491,9.70825984,2578.5,2578.4,3.2078]
[1729690073695,10.53455984,2578.5,2578.4,3.2078]
[1729690073892,5.84138984,2578.5,2578.4,4.6078]
[1729690074095,1.4,2578.5,2578.4,4.99588]
[1729690074293,0.38805,2578.7,2578.6,0.38805]
[1729690074803,0.38805,2578.7,2578.5,1.19616]
[1729690075300,0.8263,2578.8,2578.5,0.8081]
[1729690075601,0.38804,2578.7,2578.6,0.38805]
[1729690075796,0.38805,2578.6,2578.5,1.19616]
[1729690075998,0.38805,2578.7,2578.5,0.8081]
[1729690076199,0.38805,2578.7,2578.5,1.19616]
[1729690076798,0.38805,2578.6,2578.5,1.19616]
[1729690076993,0.3996,2578.8,2578.5,1.19616]
[1729690077205,0.38805,2578.6,2578.5,1.19616]
[1729690077398,0.38805,2578.6,2578.5,0.8081]
[1729690078400,0.3881,2578.3,2578.2,0.38811]
[1729690078602,0.97014,2578.6,2578.1,1.2376]
[1729690078804,0.3881,2578.4,2578.3,0.3881]
[1729690079104,4.13314448,2578.6,2578.3,0.3881]
[1729690079298,0.38807,2578.5,2578.4,0.38808]
[1729690079500,0.38809,2578.4,2578.3,0.3881]
[1729690079811,0.38807,2578.5,2578.3,0.38809]
[1729690080004,0.38811,2578.3,2578.2,0.38811]
[1729690080206,4.13314448,2578.6,2578.1,1.2376]
[1729690080401,0.38813,2578.1,2578.0,3.2078]
[1729690081500,0.78692,2578.2,2578.1,0.38813]
[1729690081904,0.78692,2578.2,2578.0,3.2078]
[1729690082105,1.35839,2578.5,2578.0,3.2078]
[1729690082307,0.38813,2578.2,2578.0,3.2078]
[1729690082503,0.38813,2578.2,2578.1,0.38813]
[1729690082699,0.38811,2578.3,2578.2,0.38811]
[1729690082906,5.11154245,2578.4,2578.3,0.4289]
[1729690083409,3.2078,2578.7,2578.3,4.3073]
[1729690083604,3.2078,2578.7,2578.3,0.8417]
[1729690083807,0.38808,2578.5,2578.4,0.38808]
[1729690084616,0.4244,2578.6,2578.4,0.38808]
[1729690084911,0.38807,2578.5,2578.4,0.38808]
[1729690085905,3.2078,2578.7,2578.3,0.8417]
[1729690086111,3.2078,2578.7,2578.5,0.38806]
[1729690086419,0.38805,2578.6,2578.5,0.38806]
[1729690086613,3.2078,2578.7,2578.3,4.0495]
[1729690086917,3.59585,2578.7,2578.6,0.38805]
[1729690087304,0.38806,2578.6,2578.5,0.38806]
[1729690087619,3.59585,2578.7,2578.6,0.387183]
[1729690087805,3.2078,2578.7,2578.3,5.01975]
[1729690088006,3.59585,2578.7,2578.6,0.38805]
[1729690088208,0.38805,2578.7,2578.6,0.38805]
[1729690088408,0.38805,2578.7,2578.4,0.38808]
[1729690088714,0.38804,2578.7,2578.6,0.38805]
[1729690089011,1.37534,2578.9,2578.3,5.01975]
[1729690089207,1.37534,2578.9,2578.5,0.38806]
[1729690089411,0.38805,2578.7,2578.3,5.01975]
[1729690089612,0.38805,2578.7,2578.6,0.38805]
[1729690090012,0.4053,2578.9,2578.6,0.38805]
[1729690090311,0.38803,2578.8,2578.6,0.38805]
[1729690090513,0.38803,2578.8,2578.7,0.412]
[1729690091203,0.4053,2578.9,2578.7,0.814]
[1729690091402,0.38802,2578.8,2578.7,0.814]
[1729690091607,0.4053,2578.9,2578.7,0.814]
[1729690091814,0.38802,2578.8,2578.7,0.814]
[1729690092116,0.38802,2578.9,2578.7,1.20203]
[1729690092314,3.2078,2579.0,2578.7,1.20203]
[1729690092515,0.38801,2578.9,2578.7,1.20203]
[1729690092714,0.38802,2578.8,2578.7,0.814]
[1729690092915,0.38802,2578.8,2578.7,1.20204]
[1729690093115,0.38802,2578.8,2578.7,0.814]
[1729690100316,1.78802,2578.8,2578.7,0.814]
[1729690100911,1.78802,2578.8,2578.7,1.20204]
[1729690101116,1.78802,2578.8,2578.7,0.814]
[1729690102517,0.38802,2578.8,2578.7,0.814]
[1729690102819,1.78802,2578.8,2578.7,0.814]
[1729690103026,1.78802,2578.8,2578.7,1.20204]
[1729690103421,1.78802,2578.8,2578.7,0.814]
[1729690103616,1.78802,2578.8,2578.7,2.60204]
[1729690103617,1.4,2578.8,2578.7,2.60204]
[1729690103924,1.78801,2578.9,2578.7,2.60203]
[1729690104223,1.78801,2578.9,2578.7,2.214]
[1729690104424,1.78801,2578.9,2578.8,1.78802]
[1729690107728,1.78801,2578.9,2578.8,0.38802]
[1729690110124,1.38612,2579.2,2578.7,0.814]
[1729690110323,0.38805,2578.6,2578.5,0.4004]
[1729690110523,1.78805,2578.6,2578.5,0.7874]
[1729690110822,1.78805,2578.6,2578.5,1.17547]
[1729690111021,1.78805,2578.6,2578.5,0.7874]
[1729690111432,1.78805,2578.6,2578.1,0.9703]
[1729690111433,0.38811,2578.3,2578.1,3.2078]
[1729690111617,0.38811,2578.3,2578.2,0.3881]
[1729690111821,0.38811,2578.3,2578.2,1.7881]
[1729690111822,1.7881,2578.3,2578.2,1.7881]
[1729690113027,0.38808,2578.5,2578.4,0.38807]
[1729690113221,3.2078,2578.7,2578.4,1.4]
[1729690113429,3.59585,2578.7,2578.6,1.78805]
[1729690113729,0.38805,2578.6,2578.5,2.61426]
[1729690113926,1.78805,2578.6,2578.5,2.61426]
[1729690114222,1.78805,2578.6,2578.5,0.4196]
[1729690114429,0.3881,2578.3,2578.2,0.4066]
[1729690114622,0.38811,2578.2,2578.1,3.2078]
[1729690114821,1.78811,2578.2,2578.1,3.2078]
[1729690115022,1.78811,2578.2,2578.1,3.59593]
[1729690115417,1.78811,2578.2,2578.1,4.99593]
[1729690115418,1.4,2578.2,2578.1,4.99593]
[1729690115629,1.4,2578.3,2578.2,0.38811]
[1729690115836,1.7881,2578.3,2578.2,1.78811]
[1729690116331,0.3881,2578.3,2578.2,0.38811]
[1729690116726,0.38811,2578.2,2578.1,3.59592]
[1729690117024,0.38811,2578.2,2578.1,3.2078]
[1729690117530,0.38816,2577.9,2577.8,44.0078]
[1729690118422,0.38816,2577.9,2577.8,3.2078]
[1729690118934,0.38816,2577.9,2577.8,44.39597]
[1729690119919,0.38816,2577.9,2577.8,44.0078]
[1729690120125,0.38816,2577.9,2577.8,44.39597]
[1729690120529,3.6127,2578.3,2577.8,44.0078]
[1729690120729,0.38815,2578.0,2577.9,0.38815]
[1729690123130,4.58296,2578.3,2577.8,44.0078]
[1729690123325,0.38816,2577.9,2577.8,44.39597]
[1729690126428,0.38816,2578.0,2577.9,0.38815]
[1729690126736,0.38816,2578.0,2577.9,0.79765]
[1729690129039,0.38816,2578.0,2577.9,0.4095]
[1729690129534,0.38814,2578.1,2578.0,0.38813]
[1729690129735,0.38814,2578.1,2578.0,1.18003]
[1729690130731,3.6127,2578.3,2578.0,0.7919]
[1729690131038,0.38812,2578.2,2578.1,0.38813]
[1729690131739,0.3881,2578.3,2578.2,0.38811]
[1729690132035,0.38812,2578.2,2578.1,0.38812]
[1729690132434,0.4015,2578.4,2578.0,0.7919]
[1729690132741,0.38812,2578.2,2578.1,0.38812]
[1729690133536,0.38811,2578.3,2578.2,0.38811]
[1729690134736,0.3881,2578.3,2578.2,0.38811]
[1729690136235,1.7881,2578.3,2578.2,0.38811]
[1729690136833,1.4,2578.3,2578.2,0.38811]
[1729690137033,1.7881,2578.3,2578.2,0.38811]
[1729690138831,1.7881,2578.3,2578.1,1.4]
[1729690139028,1.4,2578.2,2578.1,1.78812]
[1729690140643,1.4,2578.3,2578.1,1.4]
[1729690140846,1.4,2578.3,2578.2,0.38811]
[1729690141035,1.7881,2578.3,2578.2,0.38811]
[1729690141741,1.4,2578.3,2578.2,0.38811]
[1729690142931,3.2078,2578.7,2578.2,1.4]
[1729690143240,1.4,2578.5,2578.4,1.78808]
[1729690143535,1.4,2578.5,2578.4,1.8113]
[1729690143835,1.4,2578.5,2578.4,6.0804]
[1729690144038,1.4,2578.5,2578.4,6.46848]
[1729690144437,3.59585,2578.7,2578.6,0.38805]
[1729690144638,4.99585,2578.7,2578.6,0.38805]
[1729690144846,1.78805,2578.7,2578.6,0.38805]
[1729690147248,0.3946,2578.9,2578.5,1.4]
[1729690147436,1.4,2578.6,2578.5,1.4]
[1729690147641,1.4,2578.6,2578.5,1.78806]
[1729690149154,1.78805,2578.6,2578.5,1.78806]
[1729690149549,1.78805,2578.6,2578.5,0.38806]
[1729690150146,1.4,2578.6,2578.5,0.38806]
[1729690150348,1.78805,2578.6,2578.5,0.38806]
[1729690151844,1.4,2578.6,2578.5,1.4]
[1729690152045,1.78805,2578.6,2578.5,1.78807]
[1729690152245,1.78805,2578.6,2578.5,0.38807]
[1729690156454,1.78805,2578.6,2578.5,1.78807]
[1729690156855,1.4,2578.6,2578.5,1.78807]
[1729690158453,1.78805,2578.6,2578.5,1.78807]
[1729690160248,0.8163,2579.0,2578.5,5.2784]
[1729690160453,1.78804,2578.7,2578.6,1.78805]
[1729690162259,0.38802,2578.9,2578.8,0.38801]
[1729690162461,1.78802,2578.9,2578.8,0.38801]
[1729690163760,1.4,2578.9,2578.8,0.38801]
[1729690163957,3.2078,2579.1,2578.8,1.7949]
[1729690164162,1.4,2579.0,2578.9,1.4]
[1729690164360,1.78799,2579.1,2579.0,0.38799]
[1729690164754,1.4,2579.1,2578.9,1.4]
[1729690165060,1.78799,2579.0,2578.9,1.788]
[1729690166863,1.4,2579.0,2578.9,1.4]
[1729690167064,1.78799,2579.0,2578.9,1.78801]
[1729690169962,1.78799,2579.0,2578.9,0.38801]
[1729690171563,1.78799,2579.0,2578.9,1.78801]
[1729690178663,0.38799,2579.1,2579.0,0.38799]
[1729690178964,1.78799,2579.1,2579.0,1.78799]
[1729690179154,1.78799,2579.1,2579.0,42.58799]
[1729690180570,1.4,2579.1,2579.0,42.58799]
[1729690181069,1.4,2579.1,2579.0,1.78799]
[1729690181865,1.4,2579.1,2579.0,2.19619]
[1729690182763,1.78798,2579.1,2579.0,2.19619]
[1729690183462,1.4,2579.1,2579.0,2.19619]
[1729690183664,1.78798,2579.1,2579.0,2.19619]
[1729690183863,1.4,2579.1,2579.0,2.19619]
[1729690185073,1.78798,2579.1,2579.0,2.19619]
[1729690186768,1.4,2579.1,2579.0,2.19619]
[1729690187067,1.78798,2579.1,2579.0,2.19619]
[1729690191365,0.38797,2579.2,2579.1,0.38796]
[1729690191568,0.38797,2579.2,2579.1,1.78796]
[1729690191780,0.38796,2579.2,2579.1,2.19637]
[1729690192167,2.20966,2579.3,2579.2,0.38796]
[1729690192467,2.20966,2579.3,2579.2,1.4]
[1729690192774,2.20966,2579.3,2579.2,1.78796]
[1729690192970,4.3368,2579.8,2579.2,1.78796]
[1729690192971,0.3879,2579.7,2579.6,0.3879]
[1729690193274,0.3879,2579.7,2579.6,1.7879]
[1729690194274,0.3879,2579.7,2579.6,1.4]
[1729690194471,1.7879,2579.7,2579.6,2.2103]
[1729690194668,1.7879,2579.7,2579.6,2.5982]
[1729690194861,1.7879,2579.7,2579.6,2.2103]
[1729690195068,0.3879,2579.7,2579.6,2.5982]
[1729690195378,0.3879,2579.7,2579.6,2.2103]
[1729690195567,1.7879,2579.7,2579.6,0.8103]
[1729690195871,1.7879,2579.7,2579.6,2.5982]
[1729690196275,1.7879,2579.7,2579.6,2.2103]
[1729690196465,1.7879,2579.7,2579.6,2.5982]
[1729690196665,1.7879,2579.7,2579.6,2.2103]
[1729690196970,5.2768,2579.7,2579.4,40.8]
[1729690197174,0.96984,2579.4,2579.0,1.61758]
[1729690197373,1.4,2579.1,2579.0,3.01759]
[1729690197770,1.78798,2579.1,2579.0,3.01759]
[1729690198070,1.78798,2579.1,2579.0,0.8314]
[1729690198268,1.78798,2579.1,2579.0,2.61939]
[1729690198569,1.78798,2579.1,2579.0,0.8314]
[1729690198770,1.78798,2579.1,2579.0,2.2314]
[1729690200374,0.38799,2579.0,2578.9,40.8]
[1729690200575,1.78799,2579.0,2578.9,42.58801]
[1729690200876,3.6023,2579.3,2578.9,42.2]
[1729690201073,5.39025,2579.3,2579.2,1.4]
[1729690201379,5.39025,2579.3,2578.9,40.8]
[1729690201380,5.88888691,2579.3,2578.9,40.8]
[1729690201580,1.78799,2579.0,2578.9,40.8]
[1729690201772,0.38799,2579.0,2578.9,42.2]
[1729690201974,1.78799,2579.0,2578.9,40.8]
[1729690202170,2.21069,2579.0,2578.9,40.8]
[1729690202372,2.21069,2579.0,2578.9,42.2]
[1729690203082,1.78799,2579.0,2578.9,42.2]
[1729690203477,0.38799,2579.0,2578.9,42.2]
[1729690203877,5.0023,2579.3,2578.9,42.2]
[1729690204180,4.55823644,2579.2,2579.1,1.4]
[1729690204378,9.83501644,2579.2,2579.1,1.4]
[1729690204575,5.95821644,2579.2,2579.1,1.4]
[1729690205282,4.55821644,2579.2,2579.1,1.4]
[1729690205582,0.38796,2579.2,2579.1,2.21198]
[1729690205880,1.4,2579.2,2579.1,1.824]
[1729690206081,1.78796,2579.2,2579.1,0.424]
[1729690206378,0.38798,2579.1,2579.0,0.8399]
[1729690206569,1.78798,2579.2,2579.0,2.62789]
[1729690206774,0.38798,2579.1,2579.0,2.2399]
[1729690206970,1.78797,2579.2,2579.0,2.62789]
[1729690207170,1.4,2579.3,2579.1,1.4]
[1729690207384,1.78796,2579.3,2579.1,1.78797]
[1729690207577,1.4,2579.3,2579.1,1.4]
[1729690207772,0.38796,2579.2,2579.0,2.62789]
[1729690208082,1.78796,2579.3,2579.1,1.78797]
[1729690208583,1.78796,2579.3,2579.1,1.4]
[1729690208584,1.4,2579.3,2579.1,1.4]
[1729690208777,0.4044,2579.5,2579.0,2.62789]
[1729690208778,1.78796,2579.2,2579.0,2.62789]
[1729690209181,1.4,2579.2,2579.1,0.38798]
[1729690209382,1.4,2579.3,2579.1,0.38798]
[1729690209577,1.78796,2579.3,2579.1,0.38798]
[1729690209983,1.78796,2579.3,2579.2,1.4]
[1729690211074,1.78796,2579.3,2579.1,0.38797]
[1729690212079,1.4,2579.3,2579.1,0.38797]
[1729690212286,1.4,2579.2,2579.0,2.2399]
[1729690212483,1.78797,2579.2,2579.0,2.2399]
[1729690212888,1.78796,2579.3,2579.1,1.78798]
[1729690213385,0.38796,2579.2,2579.1,1.78798]
[1729690213689,1.78796,2579.3,2579.1,0.38798]
[1729690213891,1.78796,2579.2,2579.0,2.2399]
[1729690214185,1.4,2579.1,2578.9,41.224]
[1729690214492,2.18069,2579.0,2578.9,40.8]
[1729690217183,2.18069,2579.0,2578.9,41.2118]
[1729690218388,2.18069,2579.0,2578.7,0.4245]
[1729690218588,1.4,2578.8,2578.5,0.05]
[1729690218887,3.18805,2578.6,2578.5,0.05]
[1729690219079,0.38807,2578.5,2578.4,3.2078]
[1729690219282,1.22227,2578.5,2578.4,3.2078]
[1729690219479,1.22227,2578.5,2578.4,45.79587]
[1729690219480,4.17908069,2578.5,2578.4,45.79587]
[1729690219682,0.38805,2578.7,2578.6,0.38805]
[1729690219881,1.4,2578.7,2578.5,1.8269]
[1729690220090,0.38804,2578.7,2578.6,0.4276]
[1729690220392,0.38807,2578.5,2578.4,44.0078]
[1729690220688,1.78807,2578.5,2578.4,44.0078]
[1729690221502,0.38807,2578.5,2578.4,40.8]
[1729690221679,3.2078,2578.7,2578.4,42.2]
[1729690221984,4.99584,2578.7,2578.6,1.4]
[1729690222491,4.99584,2578.7,2578.6,1.7995]
[1729690222687,4.6078,2578.7,2578.5,0.396]
[1729690222997,1.4,2578.6,2578.4,40.8]
[1729690223190,1.4,2578.5,2578.4,40.8]
[1729690223384,1.4,2578.5,2578.3,0.8271]
[1729690223686,1.78808,2578.4,2578.3,0.8271]
[1729690223884,1.78808,2578.4,2578.3,43.0271]
[1729690224085,0.38808,2578.4,2578.3,43.4152]
[1729690224284,0.38808,2578.4,2578.3,43.0271]
[1729690224785,1.78808,2578.4,2578.3,43.0271]
[1729690224983,1.78808,2578.4,2578.3,41.6271]
[1729690227193,0.38808,2578.5,2578.3,43.4152]
[1729690227390,0.38808,2578.4,2578.3,43.0271]
[1729690227787,0.38808,2578.4,2578.3,43.4152]
[1729690227986,0.38808,2578.4,2578.3,43.0271]
[1729690228295,1.78808,2578.4,2578.3,43.4152]
[1729690228694,1.78808,2578.4,2578.3,43.0271]
[1729690229696,0.38806,2578.6,2578.4,0.38807]
[1729690229988,4.6078,2578.7,2578.5,1.4]
[1729690230187,1.78805,2578.6,2578.4,1.4]
[1729690230393,0.38805,2578.6,2578.5,40.8]
[1729690230791,1.78805,2578.6,2578.5,40.8]
[1729690233095,1.4,2578.6,2578.5,42.2]
[1729690233398,1.4,2578.6,2578.5,41.18807]
[1729690233399,1.78805,2578.6,2578.5,41.18807]
[1729690233598,1.4,2578.6,2578.5,42.58807]
[1729690234993,1.78804,2578.8,2578.7,0.38804]
[1729690235196,0.38805,2578.7,2578.5,42.58806]
[1729690235384,4.18358894,2578.8,2578.7,0.38804]
[1729690235589,1.4,2579.0,2578.7,1.4]
[1729690235797,0.38799,2579.0,2578.9,1.78801]
[1729690235988,4.6078,2579.1,2579.0,0.38799]
[1729690236800,1.78797,2579.2,2579.0,1.4]
[1729690237100,1.4,2579.2,2579.1,0.38798]
[1729690237493,1.78796,2579.2,2579.0,0.38799]
[1729690237692,1.4,2579.1,2579.0,0.38799]
[1729690238291,1.78799,2579.1,2578.9,1.788]
[1729690238498,1.78799,2579.0,2578.9,0.388]
[1729690238697,1.78799,2579.0,2578.8,2.248]
[1729690238902,1.4,2578.9,2578.8,1.23601]
[1729690239403,1.78799,2579.0,2578.8,6.1256]
[1729690239602,1.78799,2579.0,2578.9,0.38801]
[1729690239903,0.38801,2578.9,2578.8,1.23601]
[1729690240604,1.78801,2578.9,2578.8,0.848]
[1729690241001,0.38805,2578.6,2578.5,41.18806]
[1729690241303,1.78805,2578.6,2578.5,40.8]
[1729690242906,0.38805,2578.6,2578.5,40.8]
[1729690243204,1.78805,2578.6,2578.5,40.8]
[1729690243597,1.78805,2578.6,2578.5,41.18807]
[1729690243797,0.38805,2578.7,2578.6,0.38805]
[1729690243995,0.38805,2578.6,2578.5,42.58806]
[1729690244404,0.38805,2578.6,2578.5,41.18806]
[1729690244796,4.15227857,2578.8,2578.5,41.18806]
[1729690244996,0.38805,2578.7,2578.5,41.18806]
[1729690245202,0.97005,2578.9,2578.5,41.18806]
[1729690245502,0.38805,2578.7,2578.5,41.18806]
[1729690245708,0.38805,2578.6,2578.5,41.18807]
[1729690246309,0.38805,2578.6,2578.5,40.8]
[1729690248109,0.38805,2578.6,2578.5,41.1886]
[1729690250011,3.41805,2578.6,2578.5,40.8]
[1729690250213,11.4280956,2578.6,2578.5,40.8]
[1729690251308,0.38811,2578.2,2578.1,1.2162]
[1729690251520,3.03,2578.4,2578.1,1.60432]
[1729690251713,0.38811,2578.3,2578.2,40.8]
[1729690251913,0.38811,2578.3,2578.2,41.18811]
[1729690252111,0.38811,2578.3,2578.2,40.8]
[1729690253611,11.60788676,2578.3,2578.2,40.8]
[1729690254211,12.00828676,2578.3,2578.2,40.8]
[1729690254410,12.00828676,2578.3,2578.1,0.4245]
[1729690254411,11.62017676,2578.3,2578.1,0.4245]
[1729690254611,0.38811,2578.2,2578.1,0.4245]
[1729690255004,4.80094277,2578.2,2578.1,0.4245]
[1729690255208,4.41283277,2578.2,2578.1,0.81263]
[1729690255613,3.5959,2578.4,2578.3,0.3881]
[1729690256008,0.3881,2578.3,2578.2,0.77721]
[1729690256207,0.3881,2578.3,2578.2,0.3891]
[1729690256522,0.3881,2578.4,2578.2,0.77721]
[1729690256722,9.54451,2578.7,2578.2,0.77721]
[1729690256909,4.30275174,2578.6,2578.2,0.3891]
[1729690257113,4.30275174,2578.6,2578.3,0.3881]
[1729690257114,0.38809,2578.4,2578.3,0.3881]
[1729690257719,0.38808,2578.5,2578.4,0.38808]
[1729690257919,4.30275174,2578.6,2578.2,0.3891]
[1729690258310,0.3881,2578.3,2578.2,0.3891]
[1729690258516,0.3881,2578.4,2578.2,0.77721]
[1729690258809,4.50466463,2578.4,2578.2,0.77721]
[1729690259223,4.11656463,2578.4,2578.2,0.77721]
[1729690259419,0.3881,2578.3,2578.2,0.77721]
[1729690259613,0.3881,2578.3,2578.2,0.3891]
[1729690264530,0.3881,2578.3,2578.2,0.3891]
[1729690265621,0.3881,2578.3,2578.2,0.77721]
[1729690265822,6.2378,2578.7,2578.2,4.2675]
[1729690266019,0.38804,2578.7,2578.6,0.38805]
[1729690266521,0.38801,2579.0,2578.9,0.388]
[1729690266727,3.2078,2579.2,2578.7,1.7668]
[1729690266928,0.38801,2579.0,2578.9,0.388]
[1729690267119,0.38799,2579.1,2579.0,0.38799]
[1729690267424,3.2078,2579.2,2578.7,0.7967]
[1729690267625,0.38798,2579.1,2579.0,0.38798]
[1729690268130,3.2078,2579.2,2578.8,0.4273]
[1729690268523,0.38799,2579.1,2579.0,0.38799]
[1729690269027,3.2078,2579.2,2579.1,0.38798]
[1729690269225,3.2078,2579.5,2578.9,7.20783]
[1729690269421,3.2078,2579.8,2579.2,3.2078]
[1729690269629,3.2078,2579.8,2579.3,3.8549]
[1729690269822,3.2078,2579.8,2579.3,4.2839]
[1729690270124,0.38792,2579.5,2579.4,40.8]
[1729690270326,4.19760012,2579.7,2579.4,40.8]
[1729690270626,3.2078,2579.8,2579.6,0.3879]
[1729690270818,0.38789,2579.7,2579.6,0.3879]
[1729690271016,3.2078,2579.8,2579.4,40.8]
[1729690271221,3.2078,2579.8,2579.6,0.38789]
[1729690271222,3.59569,2579.8,2579.6,0.38789]
[1729690271422,0.38789,2579.7,2579.6,0.38789]
[1729690271625,3.2078,2579.8,2579.4,40.8]
[1729690271935,0.38792,2579.5,2579.4,41.18793]